fUSD/lending_fUSD_20241121
["ID","MTS","AMOUNT","RATE_DAILY","PERIOD"]
[342957633,1732222246178,-25631.22218,0.000398,2]
[342957634,1732222246189,-950.69312369,0.000398,2]
[342957635,1732222246201,-910.5059,0.000398,2]
[342957640,1732222453373,200.0,9.6e-05,2]
[342957641,1732223347157,-336.10768824,0.00015242,2]
[342957642,1732223347181,-156.54,0.00015342,2]
[342957643,1732223347204,-152.32,0.00015342,2]
[342957644,1732223347230,-150.0,0.00016862,2]
[342957645,1732223347252,-189.65,0.0001902,2]
[342957646,1732223347273,-151.92,0.00019178,2]
[342957647,1732223347294,-286.2085,0.00024814,2]
[342957648,1732223347319,-800.0,0.00026986,120]
[342957649,1732223347340,-400.0,0.00026986,120]
[342957650,1732223347361,-173.18227356,0.00030137,2]
[342957651,1732223347382,-156.54,0.00030548,2]
[342957652,1732223347403,-250.0,0.00031,2]
[342957653,1732223347424,-230.8632442,0.000315,30]
[342957663,1732223431923,-150.0,0.00016766,2]
[342957665,1732223431933,-450.00000099,0.0003,2]
[342957667,1732223431942,-623.25886087,0.000314,2]
[342957673,1732223431993,-6228.90257125,0.000314,2]
[342957675,1732223432003,-400.0,0.00031499,2]
[342957677,1732223432013,-532.51841753,0.000315,30]
[342957679,1732223432022,-500.0,0.000315,30]
[342957681,1732223432032,-500.0,0.000315,30]
[342957683,1732223432041,-1112.86,0.00031509,90]
[342957685,1732223432050,-500.0,0.0003151,30]
[342957687,1732223432059,-500.0,0.0003151,30]
[342957689,1732223432069,-500.0,0.0003151,30]
[342957690,1732223432078,-500.0,0.0003151,30]
[342957692,1732223432088,-500.0,0.0003151,30]
[342957694,1732223432097,-6637.03,0.0003151,2]
[342957696,1732223432106,-452.3258906,0.00031945,120]
[342957698,1732223432118,-169.1,0.00032564,2]
[342957700,1732223432128,-300.0,0.00033,2]
[342957702,1732223432138,-560.0,0.00033896,2]
[342957704,1732223432148,-286.2085,0.00034046,2]
[342957706,1732223432158,-350.0,0.00035,2]
[342957708,1732223432167,-152.32,0.00035616,2]
[342957710,1732223432177,-150.0,0.00036115,120]
[342957712,1732223432186,-783.0,0.00036476,2]
[342957714,1732223432195,-790.98,0.00036773,2]
[342957716,1732223432204,-400.0,0.00037,2]
[342957718,1732223432214,-163.0545125,0.000372,103]
[342957720,1732223432223,-1429.45010812,0.000372,3]
[342957725,1732223432268,-286.54989188,0.000372,3]
[342957727,1732223432278,-150.0,0.00037206,120]
[342957729,1732223432287,-255.58650609,0.00037235,120]
[342957731,1732223432298,-730.66643842,0.00037235,120]
[342957733,1732223432307,-59.99557873,0.00038,120]
[342957739,1732223432354,-195.59092736,0.00038,120]
[342957741,1732223432365,-104.40907264,0.00038,120]
[342957743,1732223432377,-626.25736578,0.00038,120]
[342957745,1732223432386,-188.73988084,0.00038008,120]
[342957748,1732223432397,-170.18011916,0.00038008,120]
[342957750,1732223432407,-138.65988084,0.0003823,2]
[342957806,1732223435257,-11.57011916,0.0003823,2]
[342957807,1732223435267,-289.58370932,0.00038354,2]
[342957808,1732223435279,-23240.96109129,0.00038354,2]
[342957809,1732223435314,-369.45519939,0.00038354,2]
[342957810,1732223435324,-500.0,0.00038382,2]
[342957811,1732223435334,-355.19,0.00038399,2]
[342957812,1732223435344,-250.0,0.00038436,120]
[342957813,1732223435353,-150.0,0.00038767,120]
[342957814,1732223435365,-3499.49,0.00038835,2]
[342957815,1732223435375,-1500.0,0.00038846,120]
[342957816,1732223435384,-1494.77,0.00038934,2]
[342957817,1732223435394,-1183.98838081,0.00038943,2]
[342957889,1732223437956,-495.52161919,0.00038943,2]
[342957890,1732223437965,-450.0,0.00039,2]
[342957891,1732223437974,-790.98,0.00039037,2]
[342957892,1732223437983,-572.43937947,0.00039253,5]
[342957893,1732223437995,-524.56062053,0.00039253,5]
[342957894,1732223438004,-250.0,0.00039351,2]
[342957895,1732223438015,-326.99,0.00039606,2]
[342957896,1732223438026,-168.23,0.00039639,2]
[342957897,1732223438221,-1000.0,0.00039673,2]
[342957898,1732223438231,-390.70566536,0.000398,2]
[342957899,1732223438241,-150.0,0.0003987,120]
[342957900,1732223438251,-1171.1362,0.00039888,7]
[342957901,1732223438260,-255.58650609,0.0004,120]
[342957902,1732223438270,-730.66643842,0.0004,120]
[342957903,1732223438280,-4809.12394222,0.00040215,7]
[342957904,1732223438298,-132.04605778,0.00040215,7]
[342957905,1732223438307,-355.19,0.00040319,2]
[342957906,1732223438316,-162.2,0.0004041,2]
[342957907,1732223438326,-358.92,0.00040592,120]
[342957908,1732223438335,-563.45417201,0.00040628,120]
[342957909,1732223438347,-190.55582799,0.00040628,120]
[342957910,1732223438357,-152.47,0.00040679,2]
[342957911,1732223438368,-1000.0,0.00040703,3]
[342957912,1732223438377,-150.0,0.00040711,2]
[342957913,1732223438387,-250.0,0.0004089,2]
[342957914,1732223438396,-166.24,0.00040952,2]
[342957915,1732223438406,-2768.013328,0.00041,45]
[342957917,1732223438416,-1001.279,0.00041,59]
[342957919,1732223438425,-500.0,0.00041,2]
[342957921,1732223438435,-1317.52832,0.00041088,30]
[342957922,1732223438444,-151.92,0.00041096,2]
[342957923,1732223438454,-1317.52832,0.00041288,30]
[342957924,1732223438463,-790.98,0.00041301,2]
[342957925,1732223438473,-500.0,0.00041462,120]
[342957926,1732223438482,-1317.52832,0.00041488,30]
[342957927,1732223438493,-396.79,0.00041524,120]
[342957928,1732223438503,-13773.32111469,0.000416,2]
[342957929,1732223438514,-1930.67888531,0.000416,2]
[342957930,1732223438523,-150.0,0.00041602,120]
[342957931,1732223438533,-1317.52832,0.00041688,30]
[342957932,1732223438542,-116.50399469,0.00041734,2]
[342957933,1732223438561,-255.92420664,0.00041734,2]
[342957939,1732223439904,-360.83394719,0.00041734,2]
[342957941,1732223443016,-500.0,0.00040952,2]
[342957942,1732223443026,-968.215,0.00041734,2]
[342957943,1732223443073,-6045.22056757,0.00041734,2]
[342957944,1732223443086,-930.30185314,0.00041734,2]
[342957945,1732223443096,-508.202811,0.000419,49]
[342957946,1732223443106,-569.68,0.000419,2]
[342957947,1732223443117,-150.0,0.00042023,120]
[342957948,1732223443127,-150.0,0.00042081,2]
[342957949,1732223443136,-898.58083957,0.00042088,30]
[342957950,1732223443148,-418.94748043,0.00042088,30]
[342957951,1732223443157,-152.47,0.00042184,2]
[342957952,1732223443166,-355.19,0.00042239,2]
[342957953,1732223443175,-1317.52832,0.00042288,30]
[342957954,1732223443184,-1112.34483088,0.0004237,15]
[342957955,1732223443193,-150.0,0.00042375,120]
[342957956,1732223443203,-1162.0,0.00042459,2]
[342957957,1732223443212,-150.0,0.00042459,2]
[342957958,1732223443222,-13657.0,0.00042459,2]
[342957959,1732223443232,-5940.0,0.00042459,2]
[342957960,1732223443242,-500.0,0.00042469,31]
[342957961,1732223443251,-500.0,0.00042469,31]
[342957962,1732223443260,-2104.61448651,0.00042469,31]
[342957963,1732223443270,-2104.61448651,0.00042469,31]
[342957964,1732223443279,-500.0,0.00042469,31]
[342957965,1732223443289,-562.98928164,0.00042469,31]
[342957966,1732223443299,-2104.61448651,0.00042469,31]
[342957967,1732223443314,-500.0,0.00042469,31]
[342957968,1732223443337,-2104.61448651,0.00042469,31]
[342957969,1732223443363,-2104.61448651,0.00042469,31]
[342957970,1732223443380,-502.7508008,0.00042469,31]
[342957971,1732223443388,-2104.61448651,0.00042469,31]
[342957972,1732223443397,-2104.61448651,0.00042469,31]
[342957973,1732223443407,-2104.61448651,0.00042469,31]
[342957974,1732223443417,-2104.61448651,0.00042469,31]
[342957975,1732223443426,-2104.61448651,0.00042469,31]
[342957976,1732223443436,-2104.61448651,0.00042469,31]
[342957977,1732223443446,-2104.61448651,0.00042469,31]
[342957978,1732223443455,-2104.61448651,0.00042469,31]
[342957979,1732223443465,-942.9146783,0.00042469,31]
[342957984,1732223443507,-500.0,0.00041,45]
[342957985,1732223443518,-1161.69980821,0.00042469,31]
[342957986,1732223443527,-40.1361089,0.00042469,31]
[342957987,1732223443540,-2064.47837761,0.00042469,31]
[342957988,1732223443550,-2104.61448651,0.00042469,31]
[342957989,1732223443559,-1895.57241473,0.00042469,31]
[342957997,1732223445943,-587.5227,0.00037235,120]
[342957998,1732223446001,-190.76742716,0.00037235,120]
[342957999,1732223446011,-63.02257284,0.00041288,30]
[342958000,1732223446023,-86.97742716,0.00041288,30]
[342958001,1732223446033,-500.0,0.00041462,120]
[342958002,1732223446043,-209.04207178,0.00042469,31]
[342958003,1732223446052,-2104.61448651,0.00042469,31]
[342958004,1732223446064,-2104.61448651,0.00042469,31]
[342958005,1732223446075,-2104.61448651,0.00042469,31]
[342958006,1732223446085,-2104.61448651,0.00042469,31]
[342958007,1732223446095,-2104.61448651,0.00042469,31]
[342958008,1732223446104,-2104.61448651,0.00042469,31]
[342958009,1732223446114,-2104.61448651,0.00042469,31]
[342958010,1732223446126,-2104.61448651,0.00042469,31]
[342958011,1732223446136,-2104.61448651,0.00042469,31]
[342958012,1732223446145,-2104.61448651,0.00042469,31]
[342958013,1732223446155,-2104.61448651,0.00042469,31]
[342958014,1732223446164,-2104.61448651,0.00042469,31]
[342958015,1732223446173,-2104.61448651,0.00042469,31]
[342958016,1732223446183,-2104.61448651,0.00042469,31]
[342958017,1732223446192,-2104.61448651,0.00042469,31]
[342958018,1732223446201,-2104.61448651,0.00042469,31]
[342958019,1732223446211,-2104.61448651,0.00042469,31]
[342958020,1732223446220,-2104.61448651,0.00042469,31]
[342958021,1732223446230,-2104.61448651,0.00042469,31]
[342958022,1732223446239,-2104.61448651,0.00042469,31]
[342958023,1732223446248,-2104.61448651,0.00042469,31]
[342958024,1732223446258,-2104.61448651,0.00042469,31]
[342958025,1732223446271,-2104.61448651,0.00042469,31]
[342958026,1732223446281,-2104.61448651,0.00042469,31]
[342958027,1732223446290,-2104.61448651,0.00042469,31]
[342958028,1732223446300,-2104.61448651,0.00042469,31]
[342958029,1732223446310,-2104.61448651,0.00042469,31]
[342958030,1732223446320,-2104.61448651,0.00042469,31]
[342958031,1732223446330,-2104.61448651,0.00042469,31]
[342958032,1732223446340,-2104.61448651,0.00042469,31]
[342958033,1732223446350,-2104.61448651,0.00042469,31]
[342958034,1732223446360,-2104.61448651,0.00042469,31]
[342958035,1732223446371,-2104.61448651,0.00042469,31]
[342958036,1732223446382,-2104.61448651,0.00042469,31]
[342958037,1732223446391,-2104.61448651,0.00042469,31]
[342958038,1732223446401,-2104.61448651,0.00042469,31]
[342958040,1732223446411,-2104.61448651,0.00042469,31]
[342958042,1732223446420,-2104.61448651,0.00042469,31]
[342958044,1732223446430,-2104.61448651,0.00042469,31]
[342958045,1732223446440,-2104.61448651,0.00042469,31]
[342958046,1732223446451,-2104.61448651,0.00042469,31]
[342958047,1732223446461,-2104.61448651,0.00042469,31]
[342958048,1732223446471,-2104.61448651,0.00042469,31]
[342958049,1732223446482,-2104.61448651,0.00042469,31]
[342958050,1732223446495,-2104.61448651,0.00042469,31]
[342958051,1732223446505,-2104.61448651,0.00042469,31]
[342958052,1732223446515,-2104.61448651,0.00042469,31]
[342958053,1732223446525,-2104.61448651,0.00042469,31]
[342958054,1732223446535,-2104.61448651,0.00042469,31]
[342958055,1732223446544,-350958.49534753,0.0004247,3]
[342958056,1732223446553,-1770.0774823,0.0004247,2]
[342958057,1732223446563,-500.0,0.0004247,11]
[342958058,1732223446574,-192.15885252,0.0004247,11]
[342958059,1732223446584,-500.0,0.0004247,11]
[342958060,1732223446593,-500.0,0.0004247,11]
[342958061,1732223446602,-500.0,0.0004247,11]
[342958062,1732223446612,-505.12415389,0.0004247,11]
[342958063,1732223446622,-500.0,0.0004247,11]
[342958064,1732223446632,-500.0,0.0004247,11]
[342958065,1732223446641,-551.45,0.0004247,11]
[342958066,1732223446650,-561.74,0.0004247,11]
[342958067,1732223446660,-500.0,0.0004247,11]
[342958068,1732223446669,-500.0,0.0004247,11]
[342958069,1732223446679,-500.0,0.0004247,11]
[342958070,1732223446688,-500.0,0.0004247,11]
[342958071,1732223446697,-500.0,0.0004247,11]
[342958072,1732223446706,-500.0,0.0004247,11]
[342958073,1732223446715,-500.0,0.0004247,11]
[342958074,1732223446725,-500.0,0.0004247,11]
[342958075,1732223446734,-500.0,0.0004247,11]
[342958076,1732223446744,-500.0,0.0004247,11]
[342958077,1732223446753,-594.07,0.0004247,11]
[342958078,1732223446762,-500.0,0.0004247,11]
[342958079,1732223446772,-500.0,0.0004247,11]
[342958080,1732223446781,-500.0,0.0004247,11]
[342958081,1732223446790,-500.0,0.0004247,11]
[342958082,1732223446800,-500.0,0.0004247,11]
[342958083,1732223446808,-500.0,0.0004247,11]
[342958084,1732223446818,-500.0,0.0004247,11]
[342958085,1732223446827,-500.0,0.0004247,11]
[342958086,1732223446836,-500.0,0.0004247,11]
[342958087,1732223446845,-500.0,0.0004247,11]
[342958088,1732223446855,-500.0,0.0004247,11]
[342958089,1732223446865,-500.0,0.0004247,11]
[342958090,1732223446880,-500.0,0.0004247,11]
[342958091,1732223446889,-500.0,0.0004247,11]
[342958092,1732223446899,-500.0,0.0004247,11]
[342958093,1732223446908,-500.0,0.0004247,11]
[342958094,1732223446918,-500.0,0.0004247,11]
[342958095,1732223446927,-500.0,0.0004247,11]
[342958096,1732223446937,-500.0,0.0004247,11]
[342958097,1732223446948,-500.0,0.0004247,11]
[342958098,1732223446958,-500.0,0.0004247,11]
[342958099,1732223446968,-500.0,0.0004247,11]
[342958100,1732223446978,-500.0,0.0004247,11]
[342958101,1732223446988,-500.0,0.0004247,11]
[342958102,1732223446997,-500.0,0.0004247,11]
[342958103,1732223447006,-500.0,0.0004247,11]
[342958104,1732223447016,-500.0,0.0004247,11]
[342958105,1732223447025,-500.0,0.0004247,11]
[342958106,1732223447034,-500.0,0.0004247,11]
[342958107,1732223447044,-500.0,0.0004247,11]
[342958108,1732223447053,-575.2,0.0004247,11]
[342958109,1732223447063,-500.0,0.0004247,11]
[342958110,1732223447072,-500.0,0.0004247,11]
[342958111,1732223447081,-500.0,0.0004247,11]
[342958112,1732223447090,-608.64,0.0004247,11]
[342958113,1732223447099,-577.33,0.0004247,11]
[342958114,1732223447108,-638.9,0.0004247,11]
[342958115,1732223447121,-500.0,0.0004247,11]
[342958116,1732223447131,-500.0,0.0004247,11]
[342958117,1732223447140,-500.0,0.0004247,11]
[342958118,1732223447150,-500.0,0.0004247,11]
[342958119,1732223447160,-500.0,0.0004247,11]
[342958120,1732223447169,-500.0,0.0004247,11]
[342958121,1732223447179,-44.56582583,0.0004247,11]
[342958122,1732223447362,-397.39953,0.0004247,11]
[342958123,1732223447376,-58.03464417,0.0004247,11]
[342958124,1732223447385,-235.65335583,0.0004247,11]
[342958125,1732223448736,-0.09536974,0.0004247,11]
[342958126,1732223448761,-317.16127443,0.0004247,11]
[342958127,1732223448771,-500.0,0.0004247,11]
[342958128,1732223448780,-500.0,0.0004247,11]
[342958129,1732223448790,-500.0,0.0004247,11]
[342958130,1732223448800,-610.82,0.0004247,11]
[342958131,1732223448809,-500.0,0.0004247,11]
[342958132,1732223448818,-500.0,0.0004247,120]
[342958133,1732223448827,-500.0,0.0004247,11]
[342958134,1732223448837,-500.0,0.0004247,11]
[342958135,1732223448847,-500.0,0.0004247,11]
[342958136,1732223448856,-500.0,0.0004247,11]
[342958137,1732223448866,-500.0,0.0004247,11]
[342958138,1732223448877,-500.0,0.0004247,11]
[342958139,1732223448887,-500.0,0.0004247,11]
[342958140,1732223448896,-500.0,0.00042473,2]
[342958141,1732223448906,-1317.52832,0.00042488,30]
[342958142,1732223448916,-152.44,0.000425,33]
[342958143,1732223448926,-152.44,0.000425,33]
[342958144,1732223448937,-152.44,0.000425,33]
[342958145,1732223448946,-320.11275417,0.00042642,2]
[342958146,1732223448955,-3997.7267,0.00042643,2]
[342958147,1732223448966,-1317.52832,0.00042688,30]
[342958148,1732223448975,-351.73,0.00042731,2]
[342958149,1732223448985,-351.73,0.00042731,2]
[342958150,1732223448994,-351.73,0.00042731,2]
[342958151,1732223449005,-351.73,0.00042731,2]
[342958152,1732223449015,-351.73,0.00042731,2]
[342958153,1732223449025,-351.73,0.00042731,2]
[342958154,1732223449034,-351.73,0.00042731,2]
[342958155,1732223449045,-351.73,0.00042731,2]
[342958156,1732223449055,-351.73,0.00042732,2]
[342958157,1732223449064,-351.73,0.00042732,2]
[342958158,1732223449073,-274.40427195,0.00042741,11]
[342958159,1732223449086,-225.59572805,0.00042741,11]
[342958160,1732223449096,-500.0,0.00042741,11]
[342958161,1732223449106,-500.0,0.00042741,2]
[342958162,1732223449116,-500.0,0.00042741,11]
[342958163,1732223449128,-372.30630689,0.00042741,11]
[342958164,1732223449140,-127.69369311,0.00042741,11]
[342958165,1732223449149,-163.38467849,0.00042741,11]
[342958166,1732223449162,-336.61532151,0.00042741,11]
[342958167,1732223449172,-101.63765849,0.00042741,11]
[342958168,1732223449184,-398.36234151,0.00042741,11]
[342958169,1732223449193,-58.37987009,0.00042741,11]
[342958170,1732223903101,-247.95,0.00019178,2]
[342958171,1732223903123,-999.57214612,0.00019178,2]
[342958172,1732223905994,5675.15603954,0.00019078,2]
[342958173,1732223978845,159.82,0.00015342,2]
[342958177,1732224308870,4245.39932287,0.0001,2]
[342958178,1732224320267,1153.03224682,9e-05,2]
[342958179,1732224355037,5740.52952154,9.336e-05,2]
[342958180,1732224355428,855.90760319,6.94e-05,2]
[342958181,1732224356952,269.3827545,0.00014,2]
[342958182,1732224417989,-308.47568626,0.00015,2]
[342958183,1732224431462,200.0,9.6e-05,2]
[342958184,1732224442132,2453.25036542,0.0001305,2]
[342958200,1732224632100,-969.34837698,0.0001295,2]
[342958201,1732224632109,-4213.49338537,0.00013,2]
[342958202,1732224632119,-2633.67496231,0.0001305,2]
[342958203,1732224632129,-150.0,0.00014287,2]
[342958204,1732224632138,-1979.787768,0.00014924,2]
[342958205,1732224632147,-300.0,0.00014998,2]
[342958206,1732224632156,-1638.2052866,0.00015,2]
[342958207,1732224632166,-5389.0,0.00015,2]
[342958208,1732224632175,-1517.64,0.000153,2]
[342958209,1732224632184,-420.0,0.00016415,2]
[342958210,1732224632194,-4662.05262206,0.000199,3]
[342958211,1732224632203,-296.57369763,0.0002,2]
[342958212,1732224632212,-3810.06014932,0.0002,2]
[342958213,1732224632221,-3950.0,0.0002,2]
[342958214,1732224632245,-4478.00599777,0.0002152,2]
[342958215,1732224632254,-229.20199817,0.0002211,2]
[342958216,1732224632263,-2143.52813322,0.000225,2]
[342958217,1732224632272,-952.48276471,0.00023922,2]
[342958218,1732224632281,-973.28206528,0.00024,2]
[342958219,1732224632290,-627.02046516,0.00024,2]
[342958220,1732224632299,-159.82,0.00024031,2]
[342958221,1732224632307,-3084.33362742,0.0002421,2]
[342958222,1732224632326,-439.0390474,0.0002421,2]
[342958223,1732224632335,-3963.28434778,0.00025,60]
[342958224,1732224632344,-459.02192241,0.00025,2]
[342958225,1732224632352,-1020.49527607,0.00025,60]
[342958226,1732224632361,-500.0,0.00025,2]
[342958227,1732224632370,-1587.43151531,0.00025,2]
[342958228,1732224632379,-253.73998551,0.00025,2]
[342958229,1732224632388,-4717.39260563,0.00025,2]
[342958230,1732224632406,-119.077704,0.00025,2]
[342958231,1732224632415,-330.922296,0.000251,2]
[342958232,1732224632451,-2893.05233874,0.000251,2]
[342958234,1732224632461,-582.26146338,0.000256,2]
[342958236,1732224632470,-726.91821638,0.0002592,2]
[342958264,1732224638133,-2443.41740905,0.0002592,2]
[342958265,1732224638143,-4310.88292401,0.00026,2]
[342958266,1732224638152,-569.89365997,0.00027,2]
[342958267,1732224638161,-1103.10160524,0.00027,2]
[342958268,1732224638173,-21.80003435,0.00027,2]
[342958269,1732224638182,-410.78075325,0.00027,2]
[342958270,1732224638192,-1037.9192124,0.00027,120]
[342958271,1732224638540,-774.8730253,0.00027,120]
[342958272,1732224638551,-191.58693009,0.000275,2]
[342958273,1732224638561,-3382.48918301,0.00028,2]
[342958274,1732224638571,-493.9563592,0.00028,15]
[342958275,1732224638580,-7896.11625859,0.00028,4]
[342958276,1732224638590,-232.36,0.00028832,2]
[342958277,1732224638599,-250.0,0.00029042,2]
[342958278,1732224638609,-1000.0,0.00029144,2]
[342958279,1732224638619,-250.0,0.00029223,2]
[342958280,1732224638628,-162.2,0.0002928,2]
[342958281,1732224638638,-150.36,0.00029499,2]
[342958282,1732224638648,-500.0,0.0003,30]
[342958283,1732224638657,-151.0,0.0003,120]
[342958284,1732224638667,-2000.29340853,0.0003,14]
[342958285,1732224638680,-164.35455908,0.00030137,2]
[342958286,1732224638691,-232.36,0.00030273,2]
[342958287,1732224638702,-314.6991,0.000314,2]
[342958288,1732224638712,-664.75746935,0.000315,30]
[342958289,1732224638721,-851.01227064,0.000315,30]
[342958290,1732224638732,-500.0,0.0003151,30]
[342958291,1732224638742,-500.0,0.0003151,30]
[342958292,1732224638752,-500.0,0.0003151,30]
[342958293,1732224638762,-500.0,0.0003151,30]
[342958294,1732224638771,-509.0668674,0.0003151,30]
[342958295,1732224638780,-500.0,0.0003151,30]
[342958296,1732224638790,-515.91336403,0.0003151,30]
[342958297,1732224638799,-232.36,0.00031715,2]
[342958298,1732224638809,-275.98547736,0.00031945,120]
[342958299,1732224638819,-2885.63850166,0.00032,90]
[342958300,1732224638833,-159.82,0.0003272,2]
[342958301,1732224638842,-387.77,0.00032777,10]
[342958302,1732224638852,-1000.0,0.00032787,2]
[342958303,1732224638862,-4597.54413688,0.000328,2]
[342958304,1732224638872,-232.36,0.00033157,2]
[342958305,1732224638881,-13361.0,0.000342,2]
[342958306,1732224638890,-232.36,0.00034598,2]
[342958308,1732224638900,-2751.0,0.00034985,120]
[342958309,1732224638910,-500.0,0.00035,30]
[342958310,1732224638920,-4000.69741644,0.00035,2]
[342958311,1732224638929,-11558.0,0.000355,3]
[342958312,1732224638938,-500.0,0.00035882,2]
[342958313,1732224638948,-500.0,0.00035882,5]
[342958314,1732224638958,-200.0,0.00036038,2]
[342958315,1732224638967,-168.25,0.00036168,2]
[342958316,1732224638977,-1000.0,0.0003643,2]
[342958317,1732224638989,-150.0,0.00036618,120]
[342958318,1732224638999,-11558.0,0.000368,5]
[342958319,1732224639008,-1333.16676273,0.00037133,15]
[342958320,1732224639018,-571.19688198,0.00037133,15]
[342958321,1732224639027,-323.14,0.00037222,10]
[342958322,1732224639036,-351.73,0.00037223,2]
[342958323,1732224639045,-351.73,0.00037223,2]
[342958324,1732224639055,-351.73,0.00037223,2]
[342958325,1732224639065,-351.73,0.00037223,2]
[342958326,1732224639074,-351.73,0.00037223,2]
[342958327,1732224639084,-351.73,0.00037223,2]
[342958328,1732224639094,-351.73,0.00037223,2]
[342958329,1732224639103,-351.73,0.00037223,2]
[342958330,1732224639112,-351.73,0.00037223,2]
[342958331,1732224639121,-351.73,0.00037223,2]
[342958332,1732224639130,-222.52786676,0.00037232,15]
[342958333,1732224639140,-651.16772212,0.00037232,15]
[342958334,1732224639149,-651.16772212,0.00037232,15]
[342958335,1732224639158,-651.16772212,0.00037232,15]
[342958336,1732224639168,-651.16772212,0.00037232,15]
[342958337,1732224639177,-651.16772212,0.00037232,15]
[342958338,1732224639186,-651.16772212,0.00037232,15]
[342958339,1732224639195,-651.16772212,0.00037232,15]
[342958340,1732224639204,-651.16772212,0.00037232,15]
[342958341,1732224639213,-651.16772212,0.00037232,15]
[342958342,1732224639223,-651.16772212,0.00037232,15]
[342958343,1732224639232,-651.16772212,0.00037232,15]
[342958344,1732224639241,-651.16772212,0.00037232,15]
[342958345,1732224639251,-651.16772212,0.00037232,15]
[342958346,1732224639260,-651.16772212,0.00037232,15]
[342958347,1732224639271,-651.16772212,0.00037232,15]
[342958348,1732224639280,-651.16772212,0.00037232,15]
[342958349,1732224639290,-651.16772212,0.00037232,15]
[342958350,1732224639300,-651.16772212,0.00037232,15]
[342958351,1732224639310,-651.16772212,0.00037232,15]
[342958352,1732224639320,-651.16772212,0.00037232,15]
[342958353,1732224639330,-651.16772212,0.00037232,15]
[342958354,1732224639340,-651.16772212,0.00037232,15]
[342958355,1732224639349,-651.16772212,0.00037232,15]
[342958356,1732224639359,-651.16772212,0.00037232,15]
[342958357,1732224639368,-651.16772212,0.00037232,15]
[342958358,1732224639378,-651.16772212,0.00037232,15]
[342958359,1732224639387,-651.16772212,0.00037232,15]
[342958360,1732224639396,-651.16772212,0.00037232,15]
[342958361,1732224639405,-651.16772212,0.00037232,15]
[342958362,1732224639414,-651.16772212,0.00037232,15]
[342958363,1732224639423,-651.16772212,0.00037232,15]
[342958364,1732224639433,-651.16772212,0.00037232,15]
[342958365,1732224639443,-651.16772212,0.00037232,15]
[342958366,1732224639452,-651.16772212,0.00037232,15]
[342958367,1732224639462,-651.16772212,0.00037232,15]
[342958368,1732224639471,-651.16772212,0.00037232,15]
[342958369,1732224639482,-651.16772212,0.00037232,15]
[342958370,1732224639492,-651.16772212,0.00037232,15]
[342958371,1732224639502,-651.16772212,0.00037232,15]
[342958372,1732224639511,-651.16772212,0.00037232,15]
[342958373,1732224639521,-651.16772212,0.00037232,15]
[342958374,1732224639531,-651.16772212,0.00037232,15]
[342958375,1732224639542,-651.16772212,0.00037232,15]
[342958376,1732224639551,-651.16772212,0.00037232,15]
[342958377,1732224639561,-651.16772212,0.00037232,15]
[342958378,1732224639571,-651.16772212,0.00037232,15]
[342958379,1732224639582,-651.16772212,0.00037232,15]
[342958380,1732224639591,-651.16772212,0.00037232,15]
[342958381,1732224639600,-651.16772212,0.00037232,15]
[342958382,1732224639610,-651.16772212,0.00037232,15]
[342958383,1732224639619,-651.16772212,0.00037232,15]
[342958384,1732224639628,-651.16772212,0.00037232,15]
[342958385,1732224639638,-651.16772212,0.00037232,15]
[342958386,1732224639648,-651.16772212,0.00037232,15]
[342958387,1732224639658,-651.16772212,0.00037232,15]
[342958388,1732224639667,-204.46920487,0.00037233,120]
[342958389,1732224639678,-773.52775828,0.00037233,120]
[342958390,1732224639687,-3416.59334246,0.00037233,2]
[342958391,1732224639696,-3882.04,0.00037233,2]